fUST/lending_fUST_20240901
["ID","MTS","AMOUNT","RATE_DAILY","PERIOD"]
[336817660,1725190240364,-1256.23,0.00027395,2]
[336817661,1725190240373,-500.0,0.00027395,2]
[336817662,1725190240382,-670.09,0.00027395,2]
[336817663,1725190240392,-910.82,0.00027395,2]
[336817664,1725190240401,-710.04,0.00027395,2]
[336817665,1725190240410,-500.0,0.00027395,2]
[336817666,1725190240419,-1102.69,0.00027395,2]
[336817667,1725190240428,-1190.65,0.00027395,2]
[336817668,1725190240437,-556.69,0.00027395,2]
[336817669,1725190240446,-2371.33,0.00027395,2]
[336817670,1725190240456,-500.0,0.00027395,2]
[336817671,1725190240465,-560.63,0.00027395,2]
[336817672,1725190240475,-500.0,0.00027395,2]
[336817673,1725190240484,-1985.26,0.00027395,2]
[336817674,1725190240494,-6498.82,0.00027395,2]
[336817675,1725190240504,-500.0,0.00027395,2]
[336817676,1725190240513,-500.0,0.00027395,2]
[336817677,1725190240523,-542.64,0.00027395,2]
[336817678,1725190240532,-500.0,0.00027395,2]
[336817679,1725190240542,-500.0,0.00027395,2]
[336817680,1725190240555,-500.0,0.00027395,2]
[336817681,1725190240564,-500.0,0.00027395,2]
[336817682,1725190240573,-834.9,0.00027395,2]
[336817683,1725190240582,-500.0,0.00027395,2]
[336817684,1725190240593,-500.0,0.00027395,2]
[336817685,1725190240602,-1619.73,0.00027395,2]
[336817686,1725190240611,-1079.6,0.00027395,2]
[336817687,1725190240620,-500.0,0.00027395,2]
[336817688,1725190240630,-257.05024448,0.00027395,2]
[336817689,1725190240639,-500.0,0.00027395,2]
[336817690,1725190240648,-500.0,0.00027395,2]
[336817691,1725190240658,-500.0,0.00027395,2]
[336817692,1725190240667,-500.0,0.00027395,2]
[336817693,1725190240677,-393.33527083,0.00027395,2]
[336817694,1725190240687,-623.31,0.00027395,2]
[336817695,1725190240696,-743.79,0.00027395,2]
[336817696,1725190240706,-331.13218118,0.00027395,2]
[336817697,1725190240715,-500.0,0.00027395,2]
[336817698,1725190240724,-708.75,0.00027395,2]
[336817699,1725190240733,-500.0,0.00027395,2]
[336817700,1725190240919,-1914.34,0.00027395,2]
[336817701,1725190240929,-2506.3123358,0.00027395,2]
[336817714,1725190243161,500.0,0.00024999,2]
[336817715,1725190243423,500.0,0.00025273,2]
[336817716,1725190243700,373.51364292,0.00025547,2]
[336817717,1725190243720,126.48635708,0.00025547,2]
[336817718,1725190243979,500.0,0.00025821,2]
[336817719,1725190244258,500.0,0.00026095,2]
[336817720,1725190244556,500.0,0.00026369,2]
[336817721,1725190244822,500.0,0.00026643,2]
[336817722,1725190245194,500.0,0.00026917,2]
[336817723,1725190246616,-500.0,0.00027191,2]
[336817724,1725190246627,-1914.72078012,0.00027293,2]
[336817725,1725190246637,-307.9,0.00027384,3]
[336817726,1725190246648,-500.0,0.00027393,2]
[336817727,1725190246657,-1222.36,0.00027393,2]
[336817728,1725190246668,-734.35,0.00027393,2]
[336817729,1725190246677,-500.0,0.00027393,2]
[336817730,1725190246687,-1852.87,0.00027394,2]
[336817731,1725190246697,-1407.2076642,0.00027395,2]
[336817732,1725190246706,-500.0,0.00027395,2]
[336817733,1725190246716,-5515.16,0.00027395,2]
[336817734,1725190246726,-1204.33,0.00027395,2]
[336817735,1725190246736,-1053.79,0.00027395,2]
[336817736,1725190246747,-226.92594546,0.00027395,2]
[336817737,1725190246758,-500.0,0.00027395,2]
[336817738,1725190246768,-13912.41,0.00027395,2]
[336817739,1725190246777,-500.0,0.00027395,2]
[336817740,1725190246787,-500.0,0.00027395,2]
[336817741,1725190246797,-579.21,0.00027395,2]
[336817742,1725190246806,-1301.12,0.00027395,2]
[336817743,1725190246816,-1121.35,0.00027395,2]
[336817744,1725190246826,-500.0,0.00027395,2]
[336817745,1725190246836,-500.0,0.00027395,2]
[336817746,1725190246846,-500.0,0.00027395,2]
[336817747,1725190246856,-500.0,0.00027395,2]
[336817748,1725190246866,-1253.94,0.00027395,2]
[336817749,1725190246876,-500.0,0.00027396,2]
[336817750,1725190246886,-500.0,0.00027396,2]
[336817751,1725190246896,-500.0,0.00027396,2]
[336817752,1725190246906,-500.0,0.00027396,2]
[336817753,1725190246915,-500.0,0.00027396,2]
[336817754,1725190246925,-507.39525728,0.00027396,2]
[336817755,1725190246935,-500.0,0.00027396,2]
[336817756,1725190246945,-500.0,0.00027396,2]
[336817757,1725190246955,-500.0,0.00027396,2]
[336817758,1725190246965,-500.0,0.00027396,2]
[336817759,1725190246975,-500.0,0.00027396,2]
[336817760,1725190246985,-500.0,0.00027396,2]
[336817761,1725190246996,-500.0,0.00027396,2]
[336817762,1725190247006,-500.0,0.00027396,2]
[336817763,1725190247015,-200.0,0.00027396,2]
[336817764,1725190247025,-500.0,0.00027396,2]
[336817765,1725190247036,-500.0,0.00027396,2]
[336817766,1725190247046,-500.0,0.00027396,2]
[336817767,1725190247055,-500.0,0.00027396,2]
[336817768,1725190247066,-500.0,0.00027396,2]
[336817769,1725190247076,-500.0,0.00027396,2]
[336817770,1725190247088,-500.0,0.00027396,2]
[336817771,1725190247098,-500.0,0.00027396,2]
[336817772,1725190247108,-500.0,0.00027396,2]
[336817773,1725190247117,-504.28240723,0.00027396,2]
[336817774,1725190247127,-500.0,0.00027396,2]
[336817775,1725190247136,-567.53,0.00027396,2]
[336817776,1725190247146,-500.0,0.00027396,2]
[336817777,1725190247155,-500.0,0.00027396,2]
[336817778,1725190247165,-500.0,0.00027396,2]
[336817779,1725190247174,-1049.89,0.00027396,2]
[336817780,1725190247184,-500.0,0.00027396,2]
[336817781,1725190247193,-500.0,0.00027396,2]
[336817782,1725190247202,-500.0,0.00027396,2]
[336817783,1725190247212,-500.0,0.00027396,2]
[336817784,1725190247221,-500.0,0.00027396,2]
[336817785,1725190247231,-500.0,0.00027396,2]
[336817786,1725190247242,-500.0,0.00027396,2]
[336817787,1725190247251,-500.0,0.00027396,2]
[336817788,1725190247261,-500.0,0.00027396,2]
[336817789,1725190247278,-500.0,0.00027396,2]
[336817790,1725190247292,-500.0,0.00027396,2]
[336817791,1725190247302,-502.73205741,0.00027396,2]
[336817792,1725190247312,-500.0,0.00027396,2]
[336817793,1725190247322,-589.68736084,0.00027396,2]
[336817794,1725190247331,-500.0,0.00027396,2]
[336817795,1725190247342,-500.0,0.00027396,2]
[336817796,1725190247351,-500.0,0.00027396,2]
[336817797,1725190247362,-399.17452007,0.00027396,2]
[336817798,1725190247372,-500.0,0.00027396,2]
[336817799,1725190247382,-761.9,0.00027396,2]
[336817800,1725190247392,-500.0,0.00027396,2]
[336817801,1725190247402,-500.0,0.00027396,2]
[336817802,1725190247412,-500.0,0.00027396,2]
[336817803,1725190247421,-795.65,0.00027396,2]
[336817804,1725190247431,-500.0,0.00027396,2]
[336817805,1725190247441,-500.0,0.00027396,2]
[336817806,1725190247451,-500.0,0.00027396,2]
[336817807,1725190247461,-500.0,0.00027396,2]
[336817808,1725190247471,-500.0,0.00027396,2]
[336817809,1725190247481,-500.0,0.00027396,2]
[336817810,1725190247493,-500.0,0.00027396,2]
[336817811,1725190247502,-500.0,0.00027396,2]
[336817812,1725190247512,-764.37,0.00027396,2]
[336817813,1725190247522,-500.0,0.00027396,2]
[336817814,1725190247532,-500.0,0.00027396,2]
[336817815,1725190247544,-629.77,0.00027396,2]
[336817816,1725190247554,-500.0,0.00027396,2]
[336817817,1725190247563,-1215.96,0.00027396,2]
[336817818,1725190247573,-500.0,0.00027396,2]
[336817819,1725190247583,-500.0,0.00027396,2]
[336817820,1725190247592,-500.0,0.00027396,2]
[336817821,1725190247602,-500.0,0.00027396,2]
[336817822,1725190247611,-501.53762631,0.00027396,2]
[336817823,1725190247622,-500.0,0.00027396,2]
[336817824,1725190247633,-500.0,0.00027396,2]
[336817825,1725190247643,-500.0,0.00027396,2]
[336817826,1725190247652,-500.0,0.00027396,2]
[336817827,1725190247662,-500.0,0.00027396,2]
[336817828,1725190247672,-500.0,0.00027396,2]
[336817829,1725190247681,-500.0,0.00027396,2]
[336817830,1725190247691,-500.0,0.00027396,2]
[336817831,1725190247701,-500.0,0.00027396,2]
[336817832,1725190247711,-500.0,0.00027396,2]
[336817833,1725190247721,-1170.7,0.00027396,2]
[336817834,1725190247731,-500.0,0.00027396,2]
[336817835,1725190247740,-503.75109237,0.00027396,2]
[336817836,1725190247751,-500.0,0.00027396,2]
[336817837,1725190247760,-500.0,0.00027396,2]
[336817838,1725190247770,-500.0,0.00027396,2]
[336817839,1725190247779,-500.0,0.00027396,2]
[336817840,1725190247789,-1085.86,0.00027396,2]
[336817841,1725190247799,-642.09,0.00027396,2]
[336817842,1725190247808,-500.0,0.00027396,2]
[336817843,1725190247818,-500.0,0.00027396,2]
[336817844,1725190247828,-739.39,0.00027396,2]
[336817845,1725190247838,-500.0,0.00027396,2]
[336817846,1725190247848,-155.00327664,0.00027396,2]
[336817847,1725190247858,-500.0,0.00027396,2]
[336817848,1725190247868,-968.22,0.00027396,2]
[336817849,1725190247878,-500.0,0.00027396,2]
[336817850,1725190247888,-500.0,0.00027396,2]
[336817851,1725190247898,-1115.8,0.00027396,2]
[336817852,1725190247910,-379.40610764,0.00027396,2]
[336817853,1725190247920,-500.0,0.00027396,2]
[336817854,1725190247930,-500.0,0.00027396,2]
[336817855,1725190247940,-500.0,0.00027396,2]
[336817856,1725190247950,-731.19,0.00027396,2]
[336817857,1725190247960,-500.0,0.00027396,2]
[336817858,1725190247970,-500.0,0.00027396,2]
[336817859,1725190247980,-535.55,0.00027396,2]
[336817860,1725190247990,-668.48,0.00027396,2]
[336817861,1725190248001,-500.0,0.00027396,2]
[336817862,1725190248011,-500.0,0.00027396,2]
[336817863,1725190248020,-500.0,0.00027396,2]
[336817864,1725190248030,-500.0,0.00027396,2]
[336817865,1725190248040,-802.33,0.00027396,2]
[336817866,1725190248050,-500.0,0.00027396,2]
[336817867,1725190248059,-500.0,0.00027396,2]
[336817868,1725190248068,-500.0,0.00027396,2]
[336817869,1725190248078,-500.0,0.00027396,2]
[336817870,1725190248088,-500.0,0.00027396,2]
[336817871,1725190248097,-500.0,0.00027396,2]
[336817872,1725190248107,-500.0,0.00027397,15]
[336817873,1725190248117,-500.0,0.00027397,15]
[336817874,1725190248126,-500.0,0.00027397,15]
[336817875,1725190248136,-500.0,0.00027397,15]
[336817876,1725190248146,-466.40728681,0.00027397,15]
[336817877,1725190248155,-500.0,0.00027397,15]
[336817878,1725190248165,-500.0,0.00027397,15]
[336817879,1725190248175,-500.0,0.00027397,15]
[336817880,1725190248184,-500.0,0.00027397,15]
[336817881,1725190248194,-503.46079934,0.00027397,15]
[336817882,1725190248203,-500.0,0.00027397,15]
[336817883,1725190248213,-401.41969045,0.00027397,60]
[336817884,1725190248223,-500.0,0.00027465,15]
[336817885,1725190248232,-500.0,0.00027465,15]
[336817886,1725190248243,-161.354255,0.00027504,2]
[336817887,1725190248253,-610.4860228,0.00027658,3]
[336817888,1725190248262,-1220.9720456,0.00027658,3]
[336817889,1725190248272,-610.4860228,0.00027659,3]
[336817890,1725190248281,-500.0,0.0002766,15]
[336817891,1725190248291,-1220.9720456,0.0002766,3]
[336817892,1725190248301,-189.8476694,0.00027667,11]
[336817893,1725190248310,-5021.96,0.00027667,15]
[336817894,1725190248320,-741.43,0.00027667,15]
[336817895,1725190248329,-1278.04,0.00027667,15]
[336817896,1725190248338,-960.88,0.00027667,15]
[336817897,1725190248348,-1153.21,0.00027667,15]
[336817898,1725190248357,-815.48,0.00027667,15]
[336817899,1725190248366,-21602.6,0.00027667,15]
[336817900,1725190248376,-1097.19,0.00027667,15]
[336817901,1725190248386,-500.0,0.00027667,15]
[336817902,1725190248395,-1235.74,0.00027667,15]
[336817903,1725190248405,-7508.14,0.00027667,15]
[336817904,1725190248414,-4510.39,0.00027667,15]
[336817905,1725190248423,-5144.95,0.00027667,15]
[336817906,1725190248433,-553.99,0.00027667,15]
[336817907,1725190248442,-1222.36,0.00027667,15]
[336817908,1725190248451,-734.35,0.00027667,15]
[336817909,1725190248460,-500.0,0.00027667,15]
[336817910,1725190248469,-13687.1107106,0.00027668,11]
[336817911,1725190248479,-500.0,0.00027668,15]
[336817912,1725190248488,-1750.1,0.00027668,15]
[336817913,1725190248498,-500.0,0.00027668,15]
[336817914,1725190248507,-2695.32,0.00027668,15]
[336817915,1725190248517,-4145.03,0.00027668,15]
[336817916,1725190248526,-4014.95,0.00027668,15]
[336817917,1725190248536,-500.0,0.00027668,15]
[336817918,1725190248546,-32741.1,0.00027668,8]
[336817919,1725190248558,-7452.19,0.00027668,15]
[336817920,1725190248567,-1410.77,0.00027668,15]
[336817921,1725190248577,-533.66,0.00027668,15]
[336817922,1725190248587,-3313.62,0.00027668,15]
[336817923,1725190248598,-1583.29,0.00027668,15]
[336817924,1725190248608,-151.0,0.00027668,7]
[336817925,1725190248617,-500.0,0.00027668,15]
[336817926,1725190248627,-151.0,0.00027668,7]
[336817927,1725190248636,-500.0,0.00027668,15]
[336817928,1725190248646,-151.0,0.00027668,7]
[336817929,1725190248655,-2520.25,0.00027668,15]
[336817930,1725190248665,-2691.19,0.00027668,15]
[336817931,1725190248674,-195.395035,0.00027668,7]
[336817932,1725190248684,-195.395035,0.00027668,7]
[336817933,1725190248693,-500.0,0.00027668,15]
[336817934,1725190248703,-165.150562,0.00027668,7]
[336817935,1725190248712,-165.150562,0.00027668,7]
[336817936,1725190248723,-891.84,0.00027668,15]
[336817937,1725190248913,-1013.73,0.00027668,15]
[336817938,1725190248923,-151.0,0.00027668,7]
[336817939,1725190248933,-151.0,0.00027668,7]
[336817940,1725190248942,-936.11,0.00027668,15]
[336817941,1725190248952,-500.0,0.00027668,15]
[336817942,1725190248961,-3466.34,0.00027668,15]
[336817943,1725190248971,-709.907493,0.00027668,7]
[336817944,1725190248980,-709.907493,0.00027668,7]
[336817945,1725190248990,-151.0,0.00027668,7]
[336817946,1725190249000,-574.88,0.00027668,15]
[336817947,1725190249010,-151.0,0.00027668,7]
[336817948,1725190249019,-4031.65,0.00027668,15]
[336817949,1725190249029,-151.0,0.00027668,7]
[336817950,1725190249040,-151.0,0.00027668,7]
[336817951,1725190249049,-1852.87,0.00027668,15]
[336817952,1725190249058,-500.0,0.00027669,15]
[336817953,1725190249068,-2143.4,0.00027669,15]
[336817954,1725190249078,-500.0,0.00027669,15]
[336817955,1725190249087,-500.0,0.00027669,15]
[336817956,1725190249097,-500.0,0.00027669,15]
[336817957,1725190249106,-500.0,0.00027669,15]
[336817958,1725190249116,-500.0,0.00027669,15]
[336817959,1725190249126,-507.91644233,0.00027669,15]
[336817960,1725190249135,-913.5,0.00027669,15]
[336817961,1725190249144,-957.06,0.00027669,15]
[336817962,1725190249154,-500.0,0.00027669,15]
[336817963,1725190249163,-500.0,0.00027669,15]
[336817964,1725190249172,-500.0,0.00027669,15]
[336817965,1725190249181,-607.13,0.00027669,15]
[336817966,1725190249191,-500.0,0.00027669,15]
[336817967,1725190249201,-1295.04,0.00027669,15]
[336817968,1725190249211,-500.0,0.00027669,15]
[336817969,1725190249221,-500.0,0.00027669,15]
[336817970,1725190249230,-500.0,0.00027669,15]
[336817971,1725190249240,-500.0,0.00027669,15]
[336817972,1725190249252,-500.0,0.00027669,15]
[336817973,1725190249262,-500.0,0.00027669,15]
[336817974,1725190249272,-500.0,0.00027669,15]
[336817975,1725190249282,-540.26,0.00027669,15]
[336817976,1725190249292,-1687.85,0.00027669,15]
[336817977,1725190249302,-1256.23,0.00027669,15]
[336817978,1725190249312,-500.0,0.00027669,15]
[336817979,1725190249322,-670.09,0.00027669,15]
[336817980,1725190249331,-910.82,0.00027669,15]
[336817981,1725190249340,-710.04,0.00027669,15]
[336817982,1725190249350,-500.0,0.00027669,15]
[336817983,1725190249360,-1102.69,0.00027669,15]
[336817984,1725190249369,-1190.65,0.00027669,15]
[336817985,1725190249379,-556.69,0.00027669,15]
[336817986,1725190249388,-2371.33,0.00027669,15]
[336817987,1725190249398,-500.0,0.00027669,15]
[336817988,1725190249408,-560.63,0.00027669,15]
[336817989,1725190249417,-506.0353912,0.00027669,15]
[336817990,1725190249427,-1985.26,0.00027669,15]
[336817991,1725190249436,-6498.82,0.00027669,15]
[336817992,1725190249446,-500.0,0.00027669,15]
[336817993,1725190249456,-500.0,0.00027669,15]
[336817994,1725190249466,-542.64,0.00027669,15]
[336817995,1725190249475,-500.0,0.00027669,15]
[336817996,1725190249485,-500.0,0.00027669,15]
[336817997,1725190249494,-500.0,0.00027669,15]
[336817998,1725190249509,-500.0,0.00027669,15]
[336817999,1725190249518,-834.9,0.00027669,15]
[336818000,1725190249528,-500.0,0.00027669,15]
[336818001,1725190249538,-500.0,0.00027669,15]
[336818002,1725190249548,-1619.73,0.00027669,15]
[336818003,1725190249559,-1079.6,0.00027669,15]
[336818004,1725190249569,-500.0,0.00027669,15]
[336818005,1725190249578,-623.31,0.00027669,15]
[336818006,1725190249589,-743.79,0.00027669,15]
[336818007,1725190249598,-500.0,0.00027669,15]
[336818008,1725190249607,-708.75,0.00027669,15]
[336818009,1725190249617,-500.0,0.00027669,15]
[336818010,1725190249627,-1914.34,0.00027669,15]
[336818011,1725190249636,-3913.52,0.00027669,15]
[336818012,1725190249645,-5515.16,0.00027669,15]
[336818013,1725190249655,-1204.33,0.00027669,15]
[336818014,1725190249664,-1053.79,0.00027669,15]
[336818015,1725190249674,-500.0,0.00027669,15]
[336818016,1725190249683,-13912.41,0.00027669,15]
[336818017,1725190249691,-500.0,0.00027669,15]
[336818018,1725190249701,-500.0,0.00027669,15]
[336818019,1725190249710,-579.21,0.00027669,15]
[336818020,1725190249720,-1301.12,0.00027669,15]
[336818021,1725190249729,-1121.35,0.00027669,15]
[336818022,1725190249739,-500.0,0.00027669,15]
[336818023,1725190249752,-1253.94,0.00027669,15]
[336818024,1725190249762,-500.0,0.0002767,15]
[336818025,1725190249771,-500.0,0.0002767,15]
[336818026,1725190249780,-500.0,0.0002767,15]
[336818027,1725190249790,-500.0,0.0002767,15]
[336818028,1725190249799,-500.0,0.0002767,15]
[336818029,1725190249808,-500.0,0.0002767,15]
[336818030,1725190249817,-504.45782938,0.0002767,15]
[336818031,1725190249826,-500.0,0.0002767,15]
[336818032,1725190249836,-500.0,0.0002767,15]
[336818033,1725190249846,-579.57974997,0.0002767,15]
[336818034,1725190249855,-500.0,0.0002767,15]
[336818035,1725190249866,-500.0,0.0002767,15]
[336818036,1725190249875,-200.0,0.0002767,7]
[336818037,1725190249885,-500.0,0.0002767,15]
[336818038,1725190249894,-500.0,0.0002767,15]
[336818039,1725190249903,-500.0,0.0002767,15]
[336818040,1725190249913,-500.0,0.0002767,15]
[336818041,1725190249922,-500.0,0.0002767,15]
[336818042,1725190249931,-500.0,0.0002767,15]
[336818043,1725190249941,-508.3434879,0.0002767,15]
[336818044,1725190249951,-500.0,0.0002767,15]
[336818045,1725190249960,-504.47511546,0.0002767,15]
[336818046,1725190249969,-500.0,0.0002767,15]
[336818047,1725190249979,-567.53,0.0002767,15]
[336818048,1725190249988,-500.0,0.0002767,15]
[336818049,1725190249998,-511.88836415,0.0002767,15]
[336818050,1725190250007,-500.0,0.0002767,15]
[336818051,1725190250017,-1049.89,0.0002767,15]
[336818052,1725190250026,-500.0,0.0002767,15]
[336818053,1725190250036,-500.0,0.0002767,15]
[336818054,1725190250045,-500.0,0.0002767,15]
[336818055,1725190250054,-500.0,0.0002767,15]
[336818056,1725190250064,-500.0,0.0002767,15]
[336818057,1725190250073,-500.0,0.0002767,15]
[336818058,1725190250082,-500.0,0.0002767,15]
[336818059,1725190250092,-500.0,0.0002767,15]
[336818060,1725190250102,-500.0,0.0002767,15]
[336818061,1725190250112,-500.0,0.0002767,15]
[336818062,1725190250121,-500.0,0.0002767,15]
[336818063,1725190250130,-761.9,0.0002767,15]
[336818064,1725190250139,-500.0,0.0002767,15]
[336818065,1725190250148,-795.65,0.0002767,15]
[336818066,1725190250158,-500.0,0.0002767,15]
[336818067,1725190250167,-500.0,0.0002767,15]
[336818068,1725190250176,-500.0,0.0002767,15]
[336818069,1725190250185,-764.37,0.0002767,15]
[336818070,1725190250195,-500.0,0.0002767,15]
[336818071,1725190250206,-500.0,0.0002767,15]
[336818072,1725190250215,-629.77,0.0002767,15]
[336818073,1725190250225,-500.0,0.0002767,15]
[336818074,1725190250234,-1215.96,0.0002767,15]
[336818075,1725190250243,-500.0,0.0002767,15]
[336818076,1725190250253,-562.25058744,0.0002767,15]
[336818077,1725190250262,-500.0,0.0002767,15]
[336818078,1725190250272,-500.0,0.0002767,15]
[336818079,1725190250281,-500.0,0.0002767,15]
[336818080,1725190250291,-187.89479241,0.0002767,15]
[336818081,1725190250301,-500.0,0.0002767,15]
[336818082,1725190250311,-500.0,0.0002767,15]
[336818083,1725190250320,-500.0,0.0002767,15]
[336818084,1725190250329,-500.0,0.0002767,15]
[336818085,1725190250338,-500.0,0.0002767,15]
[336818086,1725190250348,-1170.7,0.0002767,15]
[336818087,1725190250357,-500.0,0.0002767,15]
[336818088,1725190250367,-500.0,0.0002767,15]
[336818089,1725190250375,-500.0,0.0002767,15]
[336818090,1725190250385,-500.0,0.0002767,15]
[336818091,1725190250395,-500.0,0.0002767,15]
[336818092,1725190250404,-1085.86,0.0002767,15]
[336818093,1725190250413,-642.09,0.0002767,15]
[336818094,1725190250422,-500.0,0.0002767,15]
[336818095,1725190250431,-500.0,0.0002767,15]
[336818096,1725190250440,-739.39,0.0002767,15]
[336818097,1725190250450,-500.0,0.0002767,15]
[336818098,1725190250459,-151.0,0.0002767,7]
[336818099,1725190250468,-500.0,0.0002767,15]
[336818100,1725190250477,-968.22,0.0002767,15]
[336818101,1725190250486,-500.0,0.0002767,15]
[336818102,1725190250496,-500.0,0.0002767,15]
[336818103,1725190250505,-1115.8,0.0002767,15]
[336818104,1725190250514,-233.539968,0.0002767,7]
[336818105,1725190250523,-233.539968,0.0002767,7]
[336818106,1725190250532,-151.0,0.0002767,7]
[336818107,1725190250542,-151.0,0.0002767,7]
[336818108,1725190250554,-500.0,0.0002767,15]
[336818109,1725190250563,-151.0,0.0002767,7]
[336818110,1725190250573,-500.0,0.0002767,15]
[336818111,1725190250582,-500.0,0.0002767,15]
[336818112,1725190250592,-731.19,0.0002767,15]
[336818113,1725190250601,-637.92,0.0002767,15]
[336818114,1725190250610,-151.0,0.0002767,7]
[336818115,1725190250618,-151.0,0.0002767,7]
[336818116,1725190250628,-461.86932819,0.0002767,15]
[336818117,1725190250638,-422.080597,0.0002767,7]
[336818118,1725190250647,-535.55,0.0002767,15]
[336818119,1725190250656,-422.080597,0.0002767,7]
[336818120,1725190250666,-195.395035,0.0002767,7]
[336818121,1725190250674,-668.48,0.0002767,15]
[336818122,1725190250684,-195.395035,0.0002767,7]
[336818123,1725190250693,-165.150562,0.0002767,7]
[336818124,1725190250702,-151.0,0.0002767,7]
[336818125,1725190250711,-165.150562,0.0002767,7]
[336818126,1725190250720,-500.0,0.0002767,15]
[336818127,1725190250730,-500.0,0.0002767,15]
[336818128,1725190250739,-153.827959,0.0002767,7]
[336818129,1725190250749,-151.0,0.0002767,7]
[336818130,1725190250758,-504.41679548,0.0002767,15]
[336818131,1725190250767,-500.0,0.0002767,15]
[336818132,1725190250776,-802.33,0.0002767,15]
[336818133,1725190250786,-500.0,0.0002767,15]
[336818134,1725190250795,-500.0,0.0002767,15]
[336818135,1725190250804,-709.907493,0.0002767,7]
[336818136,1725190250813,-500.0,0.0002767,15]
[336818137,1725190250822,-709.907493,0.0002767,7]
[336818138,1725190250831,-500.0,0.0002767,15]
[336818139,1725190250841,-500.0,0.0002767,15]
[336818140,1725190250850,-151.0,0.0002767,7]
[336818141,1725190250859,-151.0,0.0002767,7]
[336818142,1725190250868,-151.0,0.0002767,7]
[336818143,1725190250878,-500.0,0.0002767,15]
[336818144,1725190250887,-151.0,0.0002767,7]
[336818145,1725190250897,-500.0,0.00027671,15]
[336818146,1725190250907,-500.0,0.00027671,15]
[336818147,1725190250916,-500.0,0.00027671,15]
[336818148,1725190250925,-500.0,0.00027671,15]
[336818149,1725190250935,-500.0,0.00027671,15]
[336818150,1725190250944,-500.0,0.00027671,15]
[336818151,1725190250953,-500.0,0.00027671,15]
[336818152,1725190250962,-500.0,0.00027671,15]
[336818153,1725190250971,-500.0,0.00027671,15]
[336818154,1725190250980,-158.50944575,0.00027673,5]
[336818155,1725190250990,-500.0,0.00027673,4]
[336818156,1725190251000,-501.60946025,0.00027673,2]
[336818157,1725190251010,-500.0,0.00027739,15]
[336818158,1725190251019,-500.0,0.00027739,15]
[336818159,1725190251028,-863.56801206,0.00027843,2]
[336818160,1725190251039,-1220.9720456,0.00027932,3]
[336818161,1725190251048,-1220.9720456,0.00027933,3]
[336818162,1725190251058,-610.4860228,0.00027934,3]
[336818163,1725190251067,-610.4860228,0.00027935,3]
[336818164,1725190251077,-5021.96,0.00027941,15]
[336818165,1725190251086,-741.43,0.00027941,15]
[336818166,1725190251096,-1278.04,0.00027941,15]
[336818167,1725190251105,-960.88,0.00027941,15]
[336818168,1725190251114,-1153.21,0.00027941,15]
[336818169,1725190251123,-815.48,0.00027941,15]
[336818170,1725190251133,-21602.6,0.00027941,15]
[336818171,1725190251142,-1097.19,0.00027941,15]